Workbook

Sheet Sheet1
A1: Gross Schedule Income | B1: 96600 | E1: Sales Information
A2: Less Vacancy | B2: =SUM(B1*C2) -> 0 | C2: 0 | E2: Sales Price | F2: 899000
A3: Gross Operating Income | B3: =B1-B2 -> 96600 | E3: Down Payment | F3: =F2*G3 -> 179800 | G3: 0.2
E4: Balance Financed | F4: =F2-F3 -> 719200
A5: Annual Operating Expenses
A6: Taxes | B6: 8473 | E6: Finance Summary
A7: Insurance | B7: 2500 | E7: Bank Type | F7: Conv.
A8: Water/sewer | B8: 20320 | E8: Term | F8: 20
A9: Oil, Electric and Trash | B9: 5800 | E9: Interest | F9: 0.0675
A10: Management | B10: =SUM(B3*C10) -> 0 | C10: 0 | E10: Included | F10: 0
A11: Maintenance and Repair | B11: 2500 | E11: Per Month | F11: =PMT(F9/12,F8*12,F4)*-1 -> 5469
E12: Per Year | F12: =F11*12 -> 65628
A13: Total Expenses | B13: =SUM(B6:B11) -> 39593 | E13: Balance | F13: =F2-F3 -> 719200
E14: Total Monthly Payments | F14: =F11+F10 -> 5469
A15: Net Operating Income | B15: =B3-B13 -> 57007 | E15: Less Tax & Insurance | F15: 0
A16: Cap Rate | B16: =B15/F2*100 -> 6.34
E17: Total Debt Balance | F17: =F2-F3 -> 719200
A18: Cash Flow Schedule
A19: Net Operating Income | B19: =B3-B13 -> 57007 | E19: Estimated Depreciation
A20: Less Prin. & Interest Pmts. | B20: =F11*12 -> 65628 | F20: Life | G20: Basis | H20: St. Line
A21: Cash Flow (before Inc. Taxes) | B21: =B19-B20 -> -8621 | E21: Land | F21: 0 | G21: =SUM(F2*0.5) -> 449500 | H21: 0
E22: Buildings | F22: 27.5 | G22: =SUM(F2*0.5) -> 449500 | H22: =G22/F22 -> 16345
A23: Income Tax Computations
A24: Net Operating Income | B24: =B3-B13 -> 57007
A25: Approx. Annual Interest | B25: =F17*F9 -> 48546 | E25: Personal Property | H25: 0
A26: Estimated Annual Depreciation | B26: =SUM(H21:H26) -> 16345 | E26: Total Basis | G26: =G21+G22 -> 899000
A27: Net Taxable Income | B27: =B24-B25-B26 -> -7884 | E27: Total Depreciation | H27: =SUM(H21:H26) -> 16345
A28: Tax Savings or Expense | B28: =B27*C28 -> -1971 | C28: 0.25
E29: Return on Equity
E30: Cash Flow Before Income Taxes | F30: =B19-B20 -> -8621 | G30: =F30/F3 -> -0.05
E31: Income Tax | F31: =B27*C28 -> -1971
E32: Cash Flow After Income Taxes | F32: =F30-F31 -> -6650 | G32: =F32/F3 -> -0.04
E33: Equity Growth | F33: =F12-B25 -> 17082 | G33: =F33/F3 -> 0.1
E34: Appreciation | F34: =G34*F2 -> 17980 | G34: 0.02
E35: TOTAL RETURN ON EQUITY | F35: =SUM(F32:F34) -> 28412 | G35: =F35/F3 -> 0.16
E36: Value-End of year | F36: =SUM(F3:F4) -> 899000
E37: Mortgage Balance | F37: =F17-F33 -> 702118
E38: Equity-End of year | F38: =F36-F37 -> 196882

Sheet Sheet2
A1: Address | B1: Current Monthly Rent | C1: Fair Market Monthly Rent
A2: 18 Roberts Lane | B2: 0 | C2: 0
A3: 19 Roberts Lane | B3: 0 | C3: 0
A4: 20 Roberts Lane | B4: 225 | C4: 300
A5: 22 Roberts Lane | B5: 0
A6: 24 Roberts Lane | B6: 350 | C6: 600
A7: 26 Roberts Lane | B7: 225 | C7: 300
A8: 28 Roberts Lane | B8: 225 | C8: 300
A9: 30 Roberts Lane | B9: 400 | C9: 600
A10: 32 Roberts Lane | B10: 0 | C10: 0
A11: 34 Roberts Lane | B11: 300 | C11: 600
A12: 35 Roberts Lane | B12: 225 | C12: 300
A14: 127 Woodward
A15: Suite 201 | B15: 350 | C15: 600
A16: Suite 202 | B16: 600 | C16: 600
A17: Suite 203 | B17: 400 | C17: 600
A18: Commercial Space | B18: 0 | C18: 1500
A20: 129 Woodward (House) | B20: 0 | C20: 1000
A22: Lamar Ad - Billboard | B22: 167 | C22: 300
A24: Monthly Total | B24: =SUM(B2:B22) -> 3467 | C24: =SUM(C2:C22) -> 7600
A25: Yearly Total | B25: =SUM(12*B24) -> 41604 | C25: =SUM(12*C24) -> 91200
